[Event "Titled Tuesday Blitz April 11 Late 2023"]
[White "Korchmar, Vasiliy"]
[Black "Corrales Jimenez, Fidel"]
[WhiteFideId "24131750"]
[BlackFideId "3506690"]
[WhiteElo "2370"]
[BlackElo "2541"]
[Result "0-1"]
[Round "05"]
[TimeControl "180+2"]
[Date "2023.04.11"]
[WhiteClock "0:00:07"]
[BlackClock "0:01:13"]

1. e4 {[%clk 0:03:00]}  c6 {[%clk 0:02:58]} 2. d4 {[%clk 0:03:00]}  d5 {[%clk 0:02:52]} 3. e5 {[%clk 0:03:01]}  Bf5 {[%clk 0:02:50]} 4. Nd2 {[%clk 0:03:00]}  c5 {[%clk 0:02:48]} 5. dxc5 {[%clk 0:02:59]}  e6 {[%clk 0:02:48]} 6. Nb3 {[%clk 0:02:54]}  Bxc5 {[%clk 0:02:48]} 7. Nxc5 {[%clk 0:02:44]}  Qa5+ {[%clk 0:02:47]} 8. c3 {[%clk 0:02:44]}  Qxc5 {[%clk 0:02:47]} 9. Nf3 {[%clk 0:02:43]}  Ne7 {[%clk 0:02:45]} 10. Be3 {[%clk 0:02:35]}  Qc7 {[%clk 0:02:44]} 11. Be2 {[%clk 0:02:22]}  Nd7 {[%clk 0:02:41]} 12. Bd4 {[%clk 0:02:22]}  Be4 {[%clk 0:02:40]} 13. O-O {[%clk 0:02:15]}  Bxf3 {[%clk 0:02:40]} 14. Bxf3 {[%clk 0:02:16]}  Nc6 {[%clk 0:02:38]} 15. Re1 {[%clk 0:02:10]}  Ndxe5 {[%clk 0:02:36]} 16. Bxd5 {[%clk 0:02:09]}  O-O-O {[%clk 0:02:17]} 17. Be4 {[%clk 0:01:52]}  Kb8 {[%clk 0:02:12]} 18. Qa4 {[%clk 0:01:52]}  Nxd4 {[%clk 0:02:00]} 19. cxd4 {[%clk 0:01:52]}  Qc4 {[%clk 0:01:59]} 20. Qa5 {[%clk 0:01:30]}  Qxd4 {[%clk 0:01:44]} 21. Bxb7 {[%clk 0:01:02]}  Nd3 {[%clk 0:01:33]} 22. Bf3 {[%clk 0:00:14]}  Qxf2+ {[%clk 0:01:24]} 23. Kh1 {[%clk 0:00:15]}  Qb6 {[%clk 0:01:18]} 24. Qg5 {[%clk 0:00:07]}  Nf2+ {[%clk 0:01:13]} 0-1


[Site "https://www.chess.com"]

[Event "Titled Tuesday Blitz April 11 Late 2023"]
[White "Kosteniuk, Alexandra"]
[Black "Licznerski, Lukasz"]
[WhiteFideId "4128125"]
[BlackFideId "1179250"]
[WhiteElo "2453"]
[BlackElo "2450"]
[Result "1-0"]
[Round "05"]
[TimeControl "180+2"]
[Date "2023.04.11"]
[WhiteClock "0:00:08"]
[BlackClock "0:00:01"]

1. e4 {[%clk 0:03:00]}  c6 {[%clk 0:02:40]} 2. Nc3 {[%clk 0:03:00]}  d5 {[%clk 0:02:41]} 3. Nf3 {[%clk 0:03:00]}  Bg4 {[%clk 0:02:41]} 4. h3 {[%clk 0:02:59]}  Bh5 {[%clk 0:02:41]} 5. exd5 {[%clk 0:02:46]}  cxd5 {[%clk 0:02:42]} 6. d4 {[%clk 0:02:45]}  Nc6 {[%clk 0:02:41]} 7. Bb5 {[%clk 0:02:40]}  e6 {[%clk 0:02:37]} 8. g4 {[%clk 0:02:38]}  Bg6 {[%clk 0:02:37]} 9. Ne5 {[%clk 0:02:39]}  Rc8 {[%clk 0:02:38]} 10. O-O {[%clk 0:02:32]}  Bd6 {[%clk 0:02:25]} 11. f4 {[%clk 0:02:27]}  Ne7 {[%clk 0:02:25]} 12. Be3 {[%clk 0:02:16]}  f6 {[%clk 0:01:45]} 13. Nxg6 {[%clk 0:02:05]}  hxg6 {[%clk 0:01:46]} 14. Kg2 {[%clk 0:02:03]}  Kf7 {[%clk 0:01:41]} 15. a3 {[%clk 0:01:57]}  Na5 {[%clk 0:01:41]} 16. Bd3 {[%clk 0:01:54]}  Nc4 {[%clk 0:01:40]} 17. Bc1 {[%clk 0:01:54]}  Qb6 {[%clk 0:01:17]} 18. Ra2 {[%clk 0:01:51]}  Nxa3 {[%clk 0:01:05]} 19. Ne2 {[%clk 0:01:30]}  Nc4 {[%clk 0:01:03]} 20. c3 {[%clk 0:01:20]}  a6 {[%clk 0:00:52]} 21. Qc2 {[%clk 0:01:17]}  Qc6 {[%clk 0:00:46]} 22. Ng3 {[%clk 0:01:12]}  b5 {[%clk 0:00:44]} 23. Qb1 {[%clk 0:01:10]}  Qb7 {[%clk 0:00:42]} 24. Qa1 {[%clk 0:00:49]}  Ra8 {[%clk 0:00:40]} 25. b3 {[%clk 0:00:46]}  Nb6 {[%clk 0:00:39]} 26. Re2 {[%clk 0:00:44]}  Nd7 {[%clk 0:00:23]} 27. Bd2 {[%clk 0:00:44]}  Nf8 {[%clk 0:00:21]} 28. Rf3 {[%clk 0:00:37]}  a5 {[%clk 0:00:21]} 29. Qe1 {[%clk 0:00:32]}  a4 {[%clk 0:00:20]} 30. bxa4 {[%clk 0:00:25]}  bxa4 {[%clk 0:00:21]} 31. Rfe3 {[%clk 0:00:25]}  Qd7 {[%clk 0:00:19]} 32. f5 {[%clk 0:00:22]}  exf5 {[%clk 0:00:15]} 33. gxf5 {[%clk 0:00:21]}  gxf5 {[%clk 0:00:09]} 34. Rxe7+ {[%clk 0:00:21]}  Bxe7 {[%clk 0:00:09]} 35. Nxf5 {[%clk 0:00:21]}  Bd6 {[%clk 0:00:04]} 36. c4 {[%clk 0:00:10]}  a3 {[%clk 0:00:04]} 37. c5 {[%clk 0:00:09]}  a2 {[%clk 0:00:03]} 38. cxd6 {[%clk 0:00:09]}  a1=Q {[%clk 0:00:03]} 39. Re7+ {[%clk 0:00:09]}  Kg8 {[%clk 0:00:03]} 40. Rxd7 {[%clk 0:00:08]}  Nxd7 {[%clk 0:00:01]} 41. Qe6+ {[%clk 0:00:08]}  Kh7 {[%clk 0:00:01]} 42. Qxd7 {[%clk 0:00:08]}  Rhg8 {[%clk 0:00:01]} 43. Ne7+ {[%clk 0:00:08]} 1-0


[Site "https://www.chess.com"]

[Event "Titled Tuesday Blitz April 11 Late 2023"]
[White "Makarian, Rudik"]
[Black "Adewumi, Tanitoluwa"]
[WhiteFideId "44105681"]
[BlackFideId "30966396"]
[WhiteElo "2430"]
[BlackElo "2283"]
[Result "1-0"]
[Round "05"]
[TimeControl "180+2"]
[Date "2023.04.11"]
[WhiteClock "0:02:17"]
[BlackClock "0:01:43"]

1. d4 {[%clk 0:03:00]}  Nf6 {[%clk 0:02:59]} 2. Nf3 {[%clk 0:03:01]}  e6 {[%clk 0:02:56]} 3. c4 {[%clk 0:03:01]}  b6 {[%clk 0:02:55]} 4. g3 {[%clk 0:03:01]}  Ba6 {[%clk 0:02:55]} 5. b3 {[%clk 0:03:01]}  Bb4+ {[%clk 0:02:56]} 6. Bd2 {[%clk 0:03:01]}  Be7 {[%clk 0:02:56]} 7. Nc3 {[%clk 0:03:02]}  c6 {[%clk 0:02:48]} 8. e4 {[%clk 0:03:02]}  d5 {[%clk 0:02:49]} 9. cxd5 {[%clk 0:02:58]}  Bxf1 {[%clk 0:02:45]} 10. Kxf1 {[%clk 0:02:59]}  cxd5 {[%clk 0:02:44]} 11. e5 {[%clk 0:03:00]}  Ne4 {[%clk 0:02:43]} 12. Qe2 {[%clk 0:03:00]}  Nxc3 {[%clk 0:02:40]} 13. Bxc3 {[%clk 0:03:01]}  Qc8 {[%clk 0:02:40]} 14. Rc1 {[%clk 0:02:57]}  Qa6 {[%clk 0:02:40]} 15. h4 {[%clk 0:02:56]}  h5 {[%clk 0:02:38]} 16. Rc2 {[%clk 0:02:51]}  Kd7 {[%clk 0:02:38]} 17. Ng5 {[%clk 0:02:42]}  Rf8 {[%clk 0:02:17]} 18. Nh3 {[%clk 0:02:24]}  g6 {[%clk 0:02:04]} 19. Nf4 {[%clk 0:02:23]}  Rc8 {[%clk 0:02:01]} 20. Nd3 {[%clk 0:02:19]}  Nc6 {[%clk 0:01:43]} 21. Nc5+ {[%clk 0:02:17]} 1-0


[Site "https://www.chess.com"]

[Event "Titled Tuesday Blitz April 11 Late 2023"]
[White "Karthikeyan, Murali"]
[Black "Kevlishvili, Robby"]
[WhiteFideId "5074452"]
[BlackFideId "1040634"]
[WhiteElo "2523"]
[BlackElo "2572"]
[Result "0-1"]
[Round "05"]
[TimeControl "180+2"]
[Date "2023.04.11"]
[WhiteClock "0:00:12"]
[BlackClock "0:01:04"]

1. e4 {[%clk 0:02:55]}  c5 {[%clk 0:02:54]} 2. Nf3 {[%clk 0:02:52]}  d6 {[%clk 0:02:54]} 3. Bb5+ {[%clk 0:02:49]}  Nc6 {[%clk 0:02:49]} 4. O-O {[%clk 0:02:48]}  Bd7 {[%clk 0:02:42]} 5. Re1 {[%clk 0:02:49]}  a6 {[%clk 0:02:38]} 6. Bxc6 {[%clk 0:02:49]}  Bxc6 {[%clk 0:02:38]} 7. d4 {[%clk 0:02:50]}  cxd4 {[%clk 0:02:38]} 8. Nxd4 {[%clk 0:02:51]}  Rc8 {[%clk 0:02:39]} 9. Nc3 {[%clk 0:02:51]}  Nf6 {[%clk 0:02:38]} 10. Bg5 {[%clk 0:02:51]}  e6 {[%clk 0:02:35]} 11. Qd2 {[%clk 0:02:44]}  Be7 {[%clk 0:02:34]} 12. Rad1 {[%clk 0:02:44]}  O-O {[%clk 0:02:32]} 13. h3 {[%clk 0:02:31]}  b5 {[%clk 0:02:29]} 14. a3 {[%clk 0:02:05]}  Ba8 {[%clk 0:02:25]} 15. Qd3 {[%clk 0:01:44]}  Rc5 {[%clk 0:02:12]} 16. Qg3 {[%clk 0:01:36]}  Qb6 {[%clk 0:01:41]} 17. Be3 {[%clk 0:00:50]}  Qb8 {[%clk 0:01:36]} 18. Nb3 {[%clk 0:00:40]}  Rxc3 {[%clk 0:01:33]} 19. bxc3 {[%clk 0:00:37]}  Nxe4 {[%clk 0:01:34]} 20. Qg4 {[%clk 0:00:35]}  f5 {[%clk 0:01:31]} 21. Qf4 {[%clk 0:00:34]}  e5 {[%clk 0:01:29]} 22. Qh2 {[%clk 0:00:32]}  f4 {[%clk 0:01:28]} 23. Bc1 {[%clk 0:00:31]}  Qb6 {[%clk 0:01:25]} 24. Rf1 {[%clk 0:00:27]}  Nxc3 {[%clk 0:01:24]} 25. Rde1 {[%clk 0:00:28]}  Qc6 {[%clk 0:01:22]} 26. Kh1 {[%clk 0:00:24]}  Rf6 {[%clk 0:01:16]} 27. f3 {[%clk 0:00:21]}  Rg6 {[%clk 0:01:10]} 28. Bxf4 {[%clk 0:00:21]}  Bh4 {[%clk 0:01:08]} 29. Bd2 {[%clk 0:00:11]}  Bxe1 {[%clk 0:01:06]} 30. Rxe1 {[%clk 0:00:12]}  Qxf3 {[%clk 0:01:04]} 0-1


[Site "https://www.chess.com"]

[Event "Titled Tuesday Blitz April 11 Late 2023"]
[White "Tarlabasi, Emirhan"]
[Black "Keymer, Vincent"]
[WhiteFideId "6350275"]
[BlackFideId "12940690"]
[WhiteElo "2200"]
[BlackElo "2651"]
[Result "1/2-1/2"]
[Round "05"]
[TimeControl "180+2"]
[Date "2023.04.11"]
[WhiteClock "0:00:03"]
[BlackClock "0:00:03"]

1. d4 {[%clk 0:03:00]}  Nf6 {[%clk 0:02:59]} 2. c4 {[%clk 0:03:01]}  e6 {[%clk 0:02:59]} 3. Nf3 {[%clk 0:03:01]}  d5 {[%clk 0:02:58]} 4. Nc3 {[%clk 0:03:01]}  c6 {[%clk 0:02:58]} 5. e3 {[%clk 0:03:00]}  Nbd7 {[%clk 0:02:58]} 6. Be2 {[%clk 0:03:01]}  Bd6 {[%clk 0:02:57]} 7. b3 {[%clk 0:03:01]}  O-O {[%clk 0:02:57]} 8. Bb2 {[%clk 0:03:01]}  b6 {[%clk 0:02:55]} 9. O-O {[%clk 0:03:01]}  Bb7 {[%clk 0:02:56]} 10. Qc2 {[%clk 0:02:55]}  Re8 {[%clk 0:02:54]} 11. Rfd1 {[%clk 0:02:55]}  Qe7 {[%clk 0:02:54]} 12. Rac1 {[%clk 0:02:54]}  Rac8 {[%clk 0:02:52]} 13. e4 {[%clk 0:02:40]}  dxe4 {[%clk 0:02:41]} 14. Nxe4 {[%clk 0:02:40]}  Nxe4 {[%clk 0:02:42]} 15. Qxe4 {[%clk 0:02:41]}  Nf6 {[%clk 0:02:42]} 16. Qh4 {[%clk 0:02:35]}  h6 {[%clk 0:02:38]} 17. Re1 {[%clk 0:02:08]}  Bb4 {[%clk 0:02:25]} 18. Red1 {[%clk 0:01:49]}  Ba3 {[%clk 0:02:24]} 19. Bxa3 {[%clk 0:01:36]}  Qxa3 {[%clk 0:02:25]} 20. Rc2 {[%clk 0:01:37]}  Red8 {[%clk 0:02:16]} 21. Rcd2 {[%clk 0:01:36]}  c5 {[%clk 0:01:53]} 22. dxc5 {[%clk 0:01:36]}  Rxd2 {[%clk 0:01:53]} 23. Rxd2 {[%clk 0:01:32]}  Qxc5 {[%clk 0:01:52]} 24. Qd4 {[%clk 0:01:28]}  Ne4 {[%clk 0:01:33]} 25. Qxc5 {[%clk 0:01:24]}  Nxc5 {[%clk 0:01:27]} 26. h3 {[%clk 0:01:14]}  Kf8 {[%clk 0:01:22]} 27. b4 {[%clk 0:01:07]}  Na4 {[%clk 0:00:28]} 28. Rd7 {[%clk 0:01:05]}  Bxf3 {[%clk 0:00:28]} 29. gxf3 {[%clk 0:00:44]}  a5 {[%clk 0:00:17]} 30. a3 {[%clk 0:00:27]}  Nc3 {[%clk 0:00:17]} 31. Bf1 {[%clk 0:00:25]}  Nb1 {[%clk 0:00:13]} 32. Rb7 {[%clk 0:00:19]}  Rc6 {[%clk 0:00:06]} 33. c5 {[%clk 0:00:10]}  bxc5 {[%clk 0:00:04]} 34. bxa5 {[%clk 0:00:09]}  Nd2 {[%clk 0:00:03]} 35. a6 {[%clk 0:00:09]}  Nxf1 {[%clk 0:00:02]} 36. a7 {[%clk 0:00:09]}  Ra6 {[%clk 0:00:03]} 37. Rb8+ {[%clk 0:00:09]}  Ke7 {[%clk 0:00:03]} 38. a8=Q {[%clk 0:00:09]}  Rxa8 {[%clk 0:00:03]} 39. Rxa8 {[%clk 0:00:09]}  Nd2 {[%clk 0:00:04]} 40. Rc8 {[%clk 0:00:08]}  c4 {[%clk 0:00:02]} 41. a4 {[%clk 0:00:08]}  Kd7 {[%clk 0:00:02]} 42. Rc5 {[%clk 0:00:07]}  Kd6 {[%clk 0:00:02]} 43. Rc8 {[%clk 0:00:08]}  Kd7 {[%clk 0:00:03]} 44. Rc5 {[%clk 0:00:06]}  Kd6 {[%clk 0:00:03]} 45. Rc8 {[%clk 0:00:03]}  Kd7 {[%clk 0:00:03]} 1/2-1/2


[Site "https://www.chess.com"]

[Event "Titled Tuesday Blitz April 11 Late 2023"]
[White "Leiva, Gianmarco"]
[Black "Gharibyan, Mamikon"]
[WhiteFideId "3804399"]
[BlackFideId "13308300"]
[WhiteElo "2345"]
[BlackElo "2445"]
[Result "0-1"]
[Round "05"]
[TimeControl "180+2"]
[Date "2023.04.11"]
[WhiteClock "0:00:02"]
[BlackClock "0:00:09"]

1. e4 {[%clk 0:02:59]}  e5 {[%clk 0:02:52]} 2. Nf3 {[%clk 0:02:59]}  Nc6 {[%clk 0:02:53]} 3. Bc4 {[%clk 0:02:59]}  Bc5 {[%clk 0:02:52]} 4. d3 {[%clk 0:02:59]}  Nf6 {[%clk 0:02:52]} 5. O-O {[%clk 0:02:58]}  d6 {[%clk 0:02:52]} 6. c3 {[%clk 0:02:53]}  a5 {[%clk 0:02:52]} 7. Re1 {[%clk 0:02:45]}  O-O {[%clk 0:02:47]} 8. h3 {[%clk 0:02:43]}  h6 {[%clk 0:02:41]} 9. a3 {[%clk 0:02:00]}  d5 {[%clk 0:02:11]} 10. exd5 {[%clk 0:01:56]}  Nxd5 {[%clk 0:02:12]} 11. Nbd2 {[%clk 0:01:52]}  Nb6 {[%clk 0:01:37]} 12. Ne4 {[%clk 0:01:45]}  Be7 {[%clk 0:01:24]} 13. Bb5 {[%clk 0:01:27]}  Na7 {[%clk 0:01:22]} 14. a4 {[%clk 0:01:16]}  c6 {[%clk 0:01:16]} 15. Bc4 {[%clk 0:01:16]}  Nxc4 {[%clk 0:01:17]} 16. dxc4 {[%clk 0:01:16]}  f5 {[%clk 0:01:10]} 17. Qxd8 {[%clk 0:01:07]}  Bxd8 {[%clk 0:00:54]} 18. Nc5 {[%clk 0:01:05]}  e4 {[%clk 0:00:54]} 19. Ne5 {[%clk 0:00:53]}  b6 {[%clk 0:00:45]} 20. Ncd7 {[%clk 0:00:30]}  Re8 {[%clk 0:00:43]} 21. Be3 {[%clk 0:00:29]}  Bc7 {[%clk 0:00:31]} 22. Rad1 {[%clk 0:00:17]}  c5 {[%clk 0:00:25]} 23. Bf4 {[%clk 0:00:08]}  Bxd7 {[%clk 0:00:24]} 24. Rxd7 {[%clk 0:00:05]}  Bxe5 {[%clk 0:00:25]} 25. Bxe5 {[%clk 0:00:06]}  Rxe5 {[%clk 0:00:26]} 26. Red1 {[%clk 0:00:05]}  Nc6 {[%clk 0:00:22]} 27. Rc7 {[%clk 0:00:05]}  Ne7 {[%clk 0:00:21]} 28. Rdd7 {[%clk 0:00:06]}  Re8 {[%clk 0:00:20]} 29. Rb7 {[%clk 0:00:06]}  f4 {[%clk 0:00:17]} 30. Kf1 {[%clk 0:00:04]}  e3 {[%clk 0:00:17]} 31. Rxb6 {[%clk 0:00:03]}  Nf5 {[%clk 0:00:15]} 32. Rbb7 {[%clk 0:00:02]}  exf2 {[%clk 0:00:13]} 33. Kxf2 {[%clk 0:00:02]}  Kh7 {[%clk 0:00:10]} 34. Rf7 {[%clk 0:00:02]}  Kg6 {[%clk 0:00:10]} 35. Kf3 {[%clk 0:00:03]}  Re4 {[%clk 0:00:10]} 36. Rfc7 {[%clk 0:00:01]}  h5 {[%clk 0:00:10]} 37. Rc6+ {[%clk 0:00:01]}  Kg5 {[%clk 0:00:10]} 38. Rxc5 {[%clk 0:00:01]}  g6 {[%clk 0:00:09]} 39. h4+ {[%clk 0:00:01]}  Kxh4 {[%clk 0:00:08]} 40. Rb6 {[%clk 0:00:01]}  Kg5 {[%clk 0:00:08]} 41. g4 {[%clk 0:00:01]}  hxg4+ {[%clk 0:00:08]} 42. Kf2 {[%clk 0:00:01]}  Re2+ {[%clk 0:00:08]} 43. Kf1 {[%clk 0:00:02]}  Re1+ {[%clk 0:00:09]} 44. Kf2 {[%clk 0:00:02]}  R8e2# {[%clk 0:00:09]} 0-1


[Site "https://www.chess.com"]

[Event "Titled Tuesday Blitz April 11 Late 2023"]
[White "Vakhlamov, Igor L."]
[Black "Martinez Reyes, Pedro Ramon"]
[WhiteFideId "24126748"]
[BlackFideId "3901807"]
[WhiteElo "2400"]
[BlackElo "2340"]
[Result "1-0"]
[Round "05"]
[TimeControl "180+2"]
[Date "2023.04.11"]
[WhiteClock "0:00:08"]
[BlackClock "0:01:17"]

1. e4 {[%clk 0:02:59]}  e6 {[%clk 0:02:54]} 2. d4 {[%clk 0:02:59]}  d5 {[%clk 0:02:55]} 3. Nc3 {[%clk 0:03:00]}  Nf6 {[%clk 0:02:55]} 4. Bd3 {[%clk 0:03:00]}  c5 {[%clk 0:02:54]} 5. Nf3 {[%clk 0:03:00]}  cxd4 {[%clk 0:02:48]} 6. Nxd4 {[%clk 0:02:59]}  e5 {[%clk 0:02:44]} 7. Nb3 {[%clk 0:02:51]}  dxe4 {[%clk 0:02:41]} 8. Nxe4 {[%clk 0:02:52]}  Nxe4 {[%clk 0:02:41]} 9. Bxe4 {[%clk 0:02:53]}  Qxd1+ {[%clk 0:02:41]} 10. Kxd1 {[%clk 0:02:54]}  Nc6 {[%clk 0:02:39]} 11. Be3 {[%clk 0:02:45]}  Bd7 {[%clk 0:02:39]} 12. Ke2 {[%clk 0:02:17]}  f5 {[%clk 0:02:39]} 13. Bd5 {[%clk 0:02:17]}  Nb4 {[%clk 0:02:26]} 14. Bxb7 {[%clk 0:01:46]}  Rb8 {[%clk 0:02:19]} 15. Na5 {[%clk 0:01:31]}  Nxc2 {[%clk 0:02:15]} 16. Bxa7 {[%clk 0:01:31]}  Rxb7 {[%clk 0:01:44]} 17. Nxb7 {[%clk 0:01:32]}  Bb5+ {[%clk 0:01:40]} 18. Kd2 {[%clk 0:01:07]}  Nxa1 {[%clk 0:01:40]} 19. Rxa1 {[%clk 0:01:08]}  Bb4+ {[%clk 0:01:40]} 20. Ke3 {[%clk 0:01:09]}  f4+ {[%clk 0:01:35]} 21. Ke4 {[%clk 0:01:09]}  Bc6+ {[%clk 0:01:35]} 22. Kxe5 {[%clk 0:01:10]}  Bxb7 {[%clk 0:01:36]} 23. Kxf4 {[%clk 0:01:00]}  O-O+ {[%clk 0:01:32]} 24. Kg3 {[%clk 0:01:00]}  Bd6+ {[%clk 0:01:32]} 25. Kh3 {[%clk 0:01:00]}  Bc8+ {[%clk 0:01:31]} 26. g4 {[%clk 0:00:52]}  h5 {[%clk 0:01:31]} 27. Be3 {[%clk 0:00:42]}  Bxg4+ {[%clk 0:01:25]} 28. Kg2 {[%clk 0:00:42]}  Bf3+ {[%clk 0:01:25]} 29. Kf1 {[%clk 0:00:41]}  Be5 {[%clk 0:01:24]} 30. a4 {[%clk 0:00:37]}  Bxb2 {[%clk 0:01:23]} 31. Rb1 {[%clk 0:00:35]}  Rd8 {[%clk 0:01:20]} 32. a5 {[%clk 0:00:25]}  Rd1+ {[%clk 0:01:20]} 33. Rxd1 {[%clk 0:00:25]}  Bxd1 {[%clk 0:01:21]} 34. a6 {[%clk 0:00:23]}  Bf3 {[%clk 0:01:21]} 35. a7 {[%clk 0:00:16]}  Be5 {[%clk 0:01:19]} 36. h3 {[%clk 0:00:14]}  Kf7 {[%clk 0:01:19]} 37. Ke1 {[%clk 0:00:12]}  Bc3+ {[%clk 0:01:19]} 38. Kf1 {[%clk 0:00:12]}  Ke6 {[%clk 0:01:20]} 39. Kg1 {[%clk 0:00:10]}  Be5 {[%clk 0:01:20]} 40. Kf1 {[%clk 0:00:10]}  Kf5 {[%clk 0:01:19]} 41. Kg1 {[%clk 0:00:10]}  Ke4 {[%clk 0:01:18]} 42. a8=Q+ {[%clk 0:00:07]}  Kf5 {[%clk 0:01:17]} 43. Qxf3+ {[%clk 0:00:07]}  Ke6 {[%clk 0:01:17]} 44. Qxh5 {[%clk 0:00:08]} 1-0


[Site "https://www.chess.com"]

[Event "Titled Tuesday Blitz April 11 Late 2023"]
[White "Francisco Guecamburu, Candela Be"]
[Black "Holt, Conrad"]
[WhiteFideId "160911"]
[BlackFideId "2034387"]
[WhiteElo "2326"]
[BlackElo "2592"]
[Result "0-1"]
[Round "05"]
[TimeControl "180+2"]
[Date "2023.04.11"]
[WhiteClock "0:00:16"]
[BlackClock "0:00:26"]

1. e4 {[%clk 0:03:00]}  e6 {[%clk 0:02:58]} 2. d4 {[%clk 0:03:00]}  d5 {[%clk 0:02:58]} 3. Nc3 {[%clk 0:03:01]}  Nf6 {[%clk 0:02:58]} 4. Bg5 {[%clk 0:03:01]}  dxe4 {[%clk 0:02:57]} 5. Nxe4 {[%clk 0:03:01]}  Be7 {[%clk 0:02:58]} 6. Bxf6 {[%clk 0:03:00]}  Bxf6 {[%clk 0:02:59]} 7. Nf3 {[%clk 0:03:00]}  Nd7 {[%clk 0:03:00]} 8. Bd3 {[%clk 0:02:59]}  c5 {[%clk 0:03:00]} 9. Nxf6+ {[%clk 0:02:53]}  Qxf6 {[%clk 0:02:57]} 10. c3 {[%clk 0:02:41]}  cxd4 {[%clk 0:02:56]} 11. cxd4 {[%clk 0:02:35]}  Qd8 {[%clk 0:02:47]} 12. O-O {[%clk 0:02:34]}  Nf6 {[%clk 0:02:47]} 13. Rc1 {[%clk 0:02:28]}  O-O {[%clk 0:02:46]} 14. Qe2 {[%clk 0:02:27]}  b6 {[%clk 0:02:45]} 15. Ba6 {[%clk 0:02:18]}  Bxa6 {[%clk 0:02:43]} 16. Qxa6 {[%clk 0:02:19]}  Qd7 {[%clk 0:02:39]} 17. Rfd1 {[%clk 0:02:15]}  Rfc8 {[%clk 0:02:39]} 18. Ne5 {[%clk 0:01:54]}  Qe8 {[%clk 0:02:38]} 19. Qb7 {[%clk 0:01:43]}  Rcb8 {[%clk 0:02:31]} 20. Qa6 {[%clk 0:01:28]}  Nd5 {[%clk 0:02:28]} 21. h3 {[%clk 0:01:25]}  Rc8 {[%clk 0:02:25]} 22. Qb7 {[%clk 0:01:22]}  Rcb8 {[%clk 0:02:02]} 23. Qa6 {[%clk 0:01:22]}  h6 {[%clk 0:01:54]} 24. a3 {[%clk 0:01:21]}  Rc8 {[%clk 0:01:47]} 25. Qb7 {[%clk 0:01:20]}  a5 {[%clk 0:01:43]} 26. Nd7 {[%clk 0:01:08]}  Qd8 {[%clk 0:01:34]} 27. Ne5 {[%clk 0:01:05]}  Qe8 {[%clk 0:01:18]} 28. Nd7 {[%clk 0:01:05]}  Rd8 {[%clk 0:01:16]} 29. Ne5 {[%clk 0:01:00]}  Rdb8 {[%clk 0:01:09]} 30. Qc6 {[%clk 0:00:52]}  Qxc6 {[%clk 0:01:09]} 31. Rxc6 {[%clk 0:00:52]}  Rc8 {[%clk 0:01:09]} 32. Rdc1 {[%clk 0:00:50]}  Rxc6 {[%clk 0:01:08]} 33. Rxc6 {[%clk 0:00:51]}  Rd8 {[%clk 0:01:04]} 34. Nc4 {[%clk 0:00:47]}  Rb8 {[%clk 0:01:03]} 35. Ne3 {[%clk 0:00:40]}  Nf6 {[%clk 0:00:57]} 36. Nc4 {[%clk 0:00:37]}  Nd5 {[%clk 0:00:55]} 37. Ne3 {[%clk 0:00:38]}  Ne7 {[%clk 0:00:54]} 38. Rc7 {[%clk 0:00:34]}  Kf8 {[%clk 0:00:54]} 39. Kf1 {[%clk 0:00:30]}  Ke8 {[%clk 0:00:53]} 40. Ke2 {[%clk 0:00:30]}  Rc8 {[%clk 0:00:40]} 41. Rb7 {[%clk 0:00:22]}  Rc6 {[%clk 0:00:36]} 42. Kd3 {[%clk 0:00:23]}  Nc8 {[%clk 0:00:27]} 43. Nc4 {[%clk 0:00:19]}  Rxc4 {[%clk 0:00:26]} 44. Kxc4 {[%clk 0:00:16]}  Nd6+ {[%clk 0:00:26]} 0-1


[Site "https://www.chess.com"]

[Event "Titled Tuesday Blitz April 11 Late 2023"]
[White "Mendonca, Leon Luke"]
[Black "Rastbod, Ali"]
[WhiteFideId "35028561"]
[BlackFideId "12567477"]
[WhiteElo "2464"]
[BlackElo "2248"]
[Result "0-1"]
[Round "05"]
[TimeControl "180+2"]
[Date "2023.04.11"]
[WhiteClock "0:00:16"]
[BlackClock "0:00:21"]

1. e4 {[%clk 0:02:54]}  e6 {[%clk 0:03:00]} 2. d3 {[%clk 0:02:53]}  d5 {[%clk 0:03:00]} 3. Nd2 {[%clk 0:02:54]}  Nf6 {[%clk 0:03:01]} 4. g3 {[%clk 0:02:53]}  e5 {[%clk 0:02:58]} 5. Bg2 {[%clk 0:02:52]}  dxe4 {[%clk 0:02:58]} 6. dxe4 {[%clk 0:02:50]}  Nc6 {[%clk 0:02:58]} 7. Ngf3 {[%clk 0:02:49]}  Bc5 {[%clk 0:02:58]} 8. O-O {[%clk 0:02:49]}  O-O {[%clk 0:02:58]} 9. c3 {[%clk 0:02:47]}  a5 {[%clk 0:02:58]} 10. Qe2 {[%clk 0:02:43]}  b6 {[%clk 0:02:58]} 11. b3 {[%clk 0:02:18]}  Ba6 {[%clk 0:02:56]} 12. c4 {[%clk 0:02:18]}  Qe7 {[%clk 0:02:47]} 13. Bb2 {[%clk 0:02:18]}  Rad8 {[%clk 0:02:44]} 14. Rad1 {[%clk 0:02:12]}  Rd7 {[%clk 0:02:32]} 15. Bh3 {[%clk 0:02:08]}  Rd6 {[%clk 0:02:29]} 16. Nh4 {[%clk 0:02:05]}  g6 {[%clk 0:02:29]} 17. Ndf3 {[%clk 0:02:02]}  Rfd8 {[%clk 0:02:24]} 18. Rxd6 {[%clk 0:02:02]}  Qxd6 {[%clk 0:02:24]} 19. Re1 {[%clk 0:01:39]}  a4 {[%clk 0:02:17]} 20. Ng2 {[%clk 0:01:31]}  a3 {[%clk 0:02:13]} 21. Ba1 {[%clk 0:01:30]}  Nd4 {[%clk 0:02:13]} 22. Bxd4 {[%clk 0:01:27]}  Bxd4 {[%clk 0:02:14]} 23. Ne3 {[%clk 0:01:18]}  Nxe4 {[%clk 0:01:53]} 24. Nxd4 {[%clk 0:01:11]}  exd4 {[%clk 0:01:54]} 25. Ng4 {[%clk 0:00:58]}  f5 {[%clk 0:01:46]} 26. Nh6+ {[%clk 0:00:45]}  Kg7 {[%clk 0:01:46]} 27. Bxf5 {[%clk 0:00:45]}  d3 {[%clk 0:00:54]} 28. Qxe4 {[%clk 0:00:41]}  d2 {[%clk 0:00:55]} 29. Rd1 {[%clk 0:00:41]}  Kxh6 {[%clk 0:00:55]} 30. Be6 {[%clk 0:00:20]}  Re8 {[%clk 0:00:31]} 31. Qe3+ {[%clk 0:00:19]}  Kg7 {[%clk 0:00:30]} 32. Qc3+ {[%clk 0:00:18]}  Kh6 {[%clk 0:00:26]} 33. Rxd2 {[%clk 0:00:18]}  Qxe6 {[%clk 0:00:23]} 34. f3 {[%clk 0:00:16]}  Qe1+ {[%clk 0:00:21]} 35. Kg2 {[%clk 0:00:16]}  Re2+ {[%clk 0:00:21]} 36. Rxe2 {[%clk 0:00:16]}  Qxc3 {[%clk 0:00:21]} 0-1


[Site "https://www.chess.com"]